fUSD/lending_fUSD_20260127
["ID","MTS","AMOUNT","RATE_DAILY","PERIOD"]
[403801238,1769545588841,-500.0,0.00043367,120]
[403801239,1769545588904,-532.69218196,0.00043367,120]
[403801240,1769545588968,-393.49282095,0.00043367,120]
[403801241,1769545589032,-500.0,0.00043367,120]
[403801242,1769545589097,-500.0,0.00043367,120]
[403801243,1769545589162,-531.13655575,0.00043367,120]
[403801244,1769545589227,-500.0,0.00043367,120]
[403801245,1769545589291,-500.0,0.00043367,120]
[403801246,1769545589354,-500.0,0.00043367,120]
[403801247,1769545589419,-252.23242576,0.00043367,120]
[403801248,1769545589482,-500.0,0.00043367,120]
[403801249,1769545589545,-500.0,0.00043367,120]
[403801250,1769545589609,-515.56820871,0.00043367,120]
[403801251,1769545589673,-500.0,0.00043367,120]
[403801252,1769545589738,-502.03215398,0.00043367,120]
[403801253,1769545589805,-500.0,0.00043367,120]
[403801254,1769545589870,-500.0,0.00043367,120]
[403801255,1769545589937,-500.0,0.00043367,120]
[403801256,1769545590001,-511.51705439,0.00043367,120]
[403801257,1769545590066,-541.08886123,0.00043367,120]
[403801258,1769545590131,-500.0,0.00043367,120]
[403801259,1769545590198,-500.0,0.00043367,120]
[403801260,1769545590266,-500.0,0.00043367,120]
[403801261,1769545590330,-500.0,0.00043367,120]
[403801262,1769545590398,-500.0,0.00043367,120]
[403801263,1769545590460,-512.73,0.00043367,120]
[403801264,1769545590525,-500.0,0.00043367,120]
[403801265,1769545590589,-511.16960868,0.00043367,120]
[403801266,1769545590653,-526.61678498,0.00043367,120]
[403801267,1769545590715,-543.6243623,0.00043367,120]
[403801268,1769545590778,-500.0,0.00043367,120]
[403801269,1769545590846,-500.0,0.00043367,120]
[403801270,1769545590908,-500.0,0.00043367,120]
[403801271,1769545590969,-509.60956802,0.00043367,120]
[403801272,1769545591031,-500.0,0.00043367,120]
[403801273,1769545591095,-500.0,0.00043367,120]
[403801274,1769545591156,-500.0,0.00043367,120]
[403801275,1769545591221,-500.0,0.00043367,120]
[403801276,1769545591283,-500.0,0.00043367,120]
[403801277,1769545591346,-407.8,0.00043367,120]
[403801278,1769545591409,-500.0,0.00043367,120]
[403801279,1769545591471,-500.0,0.00043367,120]
[403801280,1769545591533,-507.05168294,0.00043367,120]
[403801281,1769545591602,-530.04426757,0.00043367,120]
[403801282,1769545591666,-500.0,0.00043367,120]
[403801283,1769545591731,-500.0,0.00043367,120]
[403801284,1769545591793,-500.0,0.00043367,120]
[403801285,1769545591856,-500.0,0.00043367,120]
[403801286,1769545591919,-500.0,0.00043367,120]
[403801287,1769545591982,-540.17234903,0.00043367,120]
[403801288,1769545592047,-544.3670403,0.00043367,120]
[403801289,1769545592110,-500.0,0.00043367,120]
[403801290,1769545592171,-500.0,0.00043367,120]
[403801291,1769545592235,-515.46171006,0.00043367,120]
[403801292,1769545592302,-500.0,0.00043367,120]
[403801293,1769545592364,-500.0,0.00043367,120]
[403801294,1769545592426,-500.0,0.00043367,120]
[403801295,1769545592488,-502.53376017,0.00043367,120]
[403801296,1769545592552,-501.72917844,0.00043367,120]
[403801297,1769545592613,-500.0,0.00043367,120]
[403801298,1769545592679,-500.0,0.00043367,120]
[403801299,1769545592743,-500.0,0.00043367,120]
[403801300,1769545592810,-500.0,0.00043367,120]
[403801301,1769545592875,-500.0,0.00043367,120]
[403801302,1769545592940,-500.0,0.00043367,120]
[403801303,1769545593005,-500.0,0.00043367,120]
[403801304,1769545593070,-488.26052271,0.00043367,120]
[403801305,1769545593135,-561.26618086,0.00043367,120]
[403801306,1769545593200,-504.56741224,0.00043367,120]
[403801307,1769545593263,-500.0,0.00043367,120]
[403801308,1769545593325,-297.60237196,0.00043367,120]
[403801309,1769545593386,-500.0,0.00043367,120]
[403801310,1769545593448,-500.0,0.00043367,120]
[403801311,1769545593511,-500.0,0.00043367,120]
[403801312,1769545593574,-500.0,0.00043367,120]
[403801313,1769545593638,-500.0,0.00043367,120]
[403801314,1769545593703,-500.0,0.00043367,120]
[403801315,1769545593777,-534.72481602,0.00043367,120]
[403801316,1769545594084,-554.63042666,0.00043367,120]
[403801317,1769545594147,-500.0,0.00043367,120]
[403801318,1769545594209,-500.0,0.00043367,120]
[403801319,1769545594276,-500.0,0.00043367,120]
[403801320,1769545594338,-526.40952129,0.00043367,120]
[403801321,1769545594405,-500.0,0.00043367,120]
[403801322,1769545594469,-500.0,0.00043367,120]
[403801323,1769545594531,-500.0,0.00043367,120]
[403801324,1769545594596,-219.8957851,0.00043367,120]
[403801325,1769545594663,-500.0,0.00043367,120]
[403801326,1769545594726,-544.44874423,0.00043367,120]
[403801327,1769545594791,-500.0,0.00043367,120]
[403801328,1769545594853,-500.0,0.00043367,120]
[403801329,1769545594917,-507.77612593,0.00043367,120]
[403801330,1769545594982,-500.0,0.00043367,120]
[403801331,1769545595047,-500.0,0.00043367,120]
[403801332,1769545595109,-500.0,0.00043367,120]
[403801333,1769545595171,-500.0,0.00043367,60]
[403801334,1769545595234,-500.0,0.00043367,120]
[403801335,1769545595299,-500.0,0.00043367,120]
[403801336,1769545595360,-500.0,0.00043367,60]
[403801337,1769545595423,-500.0,0.00043367,120]
[403801338,1769545595486,-500.0,0.00043367,60]
[403801339,1769545595548,-544.56488867,0.00043367,120]
[403801340,1769545595610,-534.03503736,0.00043367,60]
[403801341,1769545595675,-500.0,0.00043367,120]
[403801342,1769545595736,-520.83417646,0.00043367,120]
[403801343,1769545595801,-500.0,0.00043367,90]
[403801344,1769545595864,-509.74639105,0.00043367,120]
[403801345,1769545595928,-500.0,0.00043367,90]
[403801346,1769545595991,-553.33750816,0.00043367,90]
[403801347,1769545596053,-500.0,0.00043367,120]
[403801348,1769545596116,-500.0,0.00043367,120]
[403801349,1769545596179,-500.0,0.00043367,120]
[403801350,1769545596240,-292.67930146,0.00043367,120]
[403801351,1769545596303,-505.53401563,0.00043367,120]
[403801352,1769545596366,-500.0,0.00043367,120]
[403801353,1769545596427,-514.32517731,0.00043367,120]
[403801354,1769545596490,-469.14608578,0.00043367,120]
[403801355,1769545596552,-500.0,0.00043367,120]
[403801356,1769545596617,-500.0,0.00043367,120]
[403801357,1769545596682,-511.84278022,0.00043367,120]
[403801358,1769545596750,-500.0,0.00043367,120]
[403801359,1769545596818,-500.0,0.00043367,120]
[403801360,1769545596886,-500.0,0.00043367,120]
[403801361,1769545596952,-500.0,0.00043367,120]
[403801362,1769545597017,-506.80104598,0.00043367,120]
[403801363,1769545597081,-435.80793503,0.00043367,120]
[403801364,1769545597145,-500.0,0.00043367,120]
[403801365,1769545597209,-500.0,0.00043367,30]
[403801366,1769545597274,-500.0,0.00043367,30]
[403801367,1769545597338,-500.0,0.00043367,120]
[403801368,1769545597401,-527.73803603,0.00043367,30]
[403801369,1769545597464,-194.34342937,0.00043367,120]
[403801370,1769545597526,-220.79916494,0.00043367,120]
[403801371,1769545597589,-530.50552034,0.00043367,120]
[403801372,1769545597653,-500.0,0.00043367,120]
[403801373,1769545597719,-500.0,0.00043367,120]
[403801374,1769545597783,-500.0,0.00043367,120]
[403801375,1769545597845,-554.66,0.00043367,120]
[403801376,1769545597908,-500.0,0.00043367,120]
[403801377,1769545597973,-560.71094761,0.00043367,120]
[403801378,1769545598042,-508.29943863,0.00043367,120]
[403801379,1769545598108,-500.0,0.00043367,120]
[403801380,1769545598177,-500.0,0.00043367,120]
[403801381,1769545598252,-500.0,0.00043367,120]
[403801382,1769545598314,-511.14832713,0.00043367,120]
[403801383,1769545598376,-560.24217889,0.00043367,120]
[403801384,1769545598440,-358.85435223,0.00043367,120]
[403801385,1769545598502,-517.19,0.00043367,120]
[403801386,1769545598564,-500.0,0.00043367,120]
[403801387,1769545598632,-500.0,0.00043367,120]
[403801388,1769545598699,-500.0,0.00043367,120]
[403801389,1769545598765,-500.0,0.00043367,120]
[403801390,1769545598830,-354.46715261,0.00043367,120]
[403801391,1769545598894,-500.0,0.00043367,120]
[403801392,1769545598958,-500.0,0.00043367,120]
[403801393,1769545599024,-279.47,0.00043367,120]
[403801394,1769545599088,-534.95969511,0.00043367,120]
[403801395,1769545599153,-500.0,0.00043367,120]
[403801396,1769545599220,-534.08578401,0.00043367,120]
[403801397,1769545599283,-500.0,0.00043367,120]
[403801398,1769545599346,-500.0,0.00043367,120]
[403801399,1769545599410,-506.90055594,0.00043367,120]
[403801400,1769545599471,-500.0,0.00043367,120]
[403801401,1769545599533,-512.47168598,0.00043367,120]
[403801402,1769545599595,-500.0,0.00043367,120]
[403801403,1769545599659,-500.0,0.00043367,120]
[403801404,1769545599723,-500.0,0.00043367,120]
[403801405,1769545599786,-535.60299827,0.00043367,120]
[403801406,1769545599852,-500.0,0.00043367,120]
[403801407,1769545599917,-449.67312618,0.00043367,120]
[403801408,1769545599981,-500.0,0.00043367,120]
[403801409,1769545600045,-181.08153017,0.00043367,120]
[403801410,1769545600107,-500.0,0.00043367,120]
[403801411,1769545600450,-500.0,0.00043367,120]
[403801412,1769545600514,-500.0,0.00043367,120]
[403801413,1769545600575,-11141.52,0.00043367,30]
[403801414,1769545600638,-505.32726931,0.00043367,120]
[403801415,1769545600700,-500.0,0.00043367,120]
[403801416,1769545600766,-500.0,0.00043367,120]
[403801417,1769545600829,-157.94,0.00043367,120]
[403801418,1769545600893,-500.0,0.00043367,120]
[403801419,1769545600958,-500.0,0.00043367,120]
[403801420,1769545601022,-554.980149,0.00043367,120]
[403801421,1769545601086,-500.0,0.00043367,120]
[403801422,1769545601149,-500.0,0.00043367,120]
[403801423,1769545601212,-531.67037929,0.00043367,120]
[403801424,1769545601277,-500.0,0.00043367,120]
[403801425,1769545601342,-500.0,0.00043367,120]
[403801426,1769545601406,-500.0,0.00043367,120]
[403801427,1769545601469,-523.5346926,0.00043367,120]
[403801428,1769545601533,-509.55963959,0.00043367,120]
[403801429,1769545601596,-500.0,0.00043367,120]
[403801430,1769545601662,-500.0,0.00043367,120]
[403801431,1769545601727,-184.1,0.00043367,120]
[403801432,1769545601793,-500.0,0.00043367,120]
[403801433,1769545601859,-500.0,0.00043367,120]
[403801434,1769545601923,-508.78483318,0.00043367,120]
[403801435,1769545601987,-500.0,0.00043367,120]
[403801436,1769545602055,-528.64576386,0.00043367,120]
[403801437,1769545602120,-500.0,0.00043367,120]
[403801438,1769545602183,-500.0,0.00043367,120]
[403801439,1769545602246,-573.84635256,0.00043367,120]
[403801440,1769545602309,-500.0,0.00043367,120]
[403801441,1769545602371,-500.0,0.00043367,120]
[403801442,1769545602433,-507.88896557,0.00043367,120]
[403801443,1769545602495,-500.0,0.00043367,120]
[403801444,1769545602565,-550.81942922,0.00043367,120]
[403801445,1769545602636,-434.44831433,0.00043367,120]
[403801446,1769545602700,-500.0,0.00043367,120]
[403801447,1769545602764,-500.0,0.00043367,120]
[403801448,1769545602830,-515.56965755,0.00043367,120]
[403801449,1769545602897,-532.88536851,0.00043367,120]
[403801450,1769545602963,-500.0,0.00043367,120]
[403801451,1769545603027,-545.19807159,0.00043367,120]
[403801452,1769545603092,-500.0,0.00043367,120]
[403801453,1769545603160,-500.0,0.00043367,120]
[403801454,1769545603225,-507.20982846,0.00043367,120]
[403801455,1769545603293,-514.80025813,0.00043367,120]
[403801456,1769545603358,-500.0,0.00043367,120]
[403801457,1769545603422,-507.41271283,0.00043367,120]
[403801458,1769545603486,-500.0,0.00043367,120]
[403801459,1769545603560,-548.59439571,0.00043367,120]
[403801460,1769545603628,-500.0,0.00043367,120]
[403801461,1769545603695,-500.0,0.00043367,120]
[403801462,1769545603760,-544.26973964,0.00043367,120]
[403801463,1769545603829,-500.0,0.00043367,120]
[403801464,1769545603893,-556.42510667,0.00043367,120]
[403801465,1769545603958,-500.0,0.00043367,120]
[403801466,1769545604025,-500.0,0.00043367,120]
[403801467,1769545604089,-515.56292341,0.00043367,120]
[403801468,1769545604153,-500.0,0.00043367,120]
[403801469,1769545604218,-500.0,0.00043367,120]
[403801470,1769545604285,-500.0,0.00043367,120]
[403801471,1769545604353,-500.0,0.00043367,120]
[403801472,1769545604419,-500.0,0.00043367,120]
[403801473,1769545604488,-558.559575,0.00043367,120]
[403801474,1769545604552,-500.0,0.00043367,120]
[403801475,1769545604625,-187.99608974,0.00043367,120]
[403801476,1769545604691,-500.0,0.00043367,120]
[403801477,1769545604758,-504.84007228,0.00043367,120]
[403801478,1769545604824,-506.11080879,0.00043367,120]
[403801479,1769545604892,-500.0,0.00043367,120]
[403801480,1769545604959,-500.0,0.00043367,120]
[403801481,1769545605026,-500.0,0.00043367,120]
[403801482,1769545605092,-500.0,0.00043367,120]
[403801483,1769545605158,-500.0,0.00043367,120]
[403801484,1769545605226,-500.0,0.00043367,120]
[403801485,1769545605287,-523.52450387,0.00043367,120]
[403801486,1769545605356,-500.0,0.00043367,120]
[403801487,1769545605420,-500.0,0.00043367,120]
[403801488,1769545605492,-500.0,0.00043367,120]
[403801489,1769545605557,-500.0,0.00043367,120]
[403801490,1769545605622,-500.0,0.00043367,120]
[403801491,1769545605688,-530.83176117,0.00043367,120]
[403801492,1769545605753,-500.0,0.00043367,120]
[403801493,1769545605821,-500.0,0.00043367,120]
[403801494,1769545605887,-500.0,0.00043367,120]
[403801495,1769545605953,-525.19455473,0.00043367,120]
[403801496,1769545606019,-536.76495487,0.00043367,120]
[403801497,1769545606083,-547.16816815,0.00043367,120]
[403801498,1769545606149,-500.0,0.00043367,120]
[403801499,1769545606211,-500.0,0.00043367,120]
[403801500,1769545606280,-500.0,0.00043367,120]
[403801501,1769545606343,-533.92976888,0.00043367,120]
[403801502,1769545606407,-500.0,0.00043367,120]
[403801503,1769545606477,-500.0,0.00043367,120]
[403801504,1769545606541,-521.08291716,0.00043367,120]
[403801505,1769545606606,-500.0,0.00043367,120]
[403801506,1769545607114,-548.95306675,0.00043367,120]
[403801507,1769545607182,-500.0,0.00043367,120]
[403801508,1769545607247,-500.0,0.00043367,120]
[403801509,1769545607314,-500.0,0.00043367,120]
[403801510,1769545607390,-508.89948653,0.00043367,120]
[403801511,1769545607459,-500.0,0.00043367,120]
[403801512,1769545607525,-520.10246298,0.00043367,120]
[403801513,1769545607591,-500.0,0.00043367,120]
[403801514,1769545607657,-500.0,0.00043367,120]
[403801515,1769545607725,-547.24164773,0.00043367,120]
[403801516,1769545607792,-500.0,0.00043367,120]
[403801517,1769545607858,-500.0,0.00043367,120]
[403801518,1769545607924,-524.16807316,0.00043367,120]
[403801519,1769545607989,-513.7655444,0.00043367,120]
[403801520,1769545608055,-500.0,0.00043367,120]
[403801521,1769545608120,-500.0,0.00043367,120]
[403801522,1769545608186,-546.70572787,0.00043367,120]
[403801523,1769545608256,-523.17971735,0.00043367,60]
[403801524,1769545608323,-500.0,0.00043367,120]
[403801525,1769545608388,-500.0,0.00043367,120]
[403801526,1769545608453,-500.0,0.00043367,120]
[403801527,1769545608519,-500.0,0.00043367,120]
[403801528,1769545608584,-583.98,0.00043367,120]
[403801529,1769545608651,-500.0,0.00043367,120]
[403801530,1769545608716,-500.0,0.00043367,120]
[403801531,1769545608782,-500.0,0.00043367,120]
[403801532,1769545608854,-500.0,0.00043367,120]
[403801533,1769545608921,-189.83519346,0.00043367,120]
[403801534,1769545608986,-504.817868,0.00043367,120]
[403801535,1769545609055,-500.0,0.00043367,120]
[403801536,1769545609122,-500.0,0.00043367,120]
[403801537,1769545609188,-500.0,0.00043367,120]
[403801538,1769545609252,-217.59,0.00043367,120]
[403801539,1769545609319,-500.0,0.00043367,120]
[403801540,1769545609387,-500.0,0.00043367,120]
[403801541,1769545609452,-500.0,0.00043367,120]
[403801542,1769545609517,-150.2,0.00043367,120]
[403801543,1769545609585,-505.75832544,0.00043367,120]
[403801544,1769545609654,-500.0,0.00043367,120]
[403801545,1769545609722,-522.94999224,0.00043367,120]
[403801546,1769545609793,-523.62583156,0.00043367,120]
[403801547,1769545609860,-500.0,0.00043367,120]
[403801548,1769545609929,-500.0,0.00043367,120]
[403801549,1769545610001,-500.0,0.00043367,120]
[403801550,1769545610074,-500.0,0.00043367,120]
[403801551,1769545610145,-475.12262535,0.00043367,120]
[403801552,1769545610212,-517.53900329,0.00043367,120]
[403801553,1769545610282,-500.0,0.00043367,120]
[403801554,1769545610347,-500.0,0.00043367,120]
[403801555,1769545610414,-500.0,0.00043367,120]
[403801556,1769545610479,-513.30671527,0.00043367,120]
[403801557,1769545610546,-500.0,0.00043367,120]
[403801558,1769545610613,-500.0,0.00043367,120]
[403801559,1769545610679,-500.0,0.00043367,120]
[403801560,1769545610753,-500.0,0.00043367,120]
[403801561,1769545610822,-500.0,0.00043367,120]
[403801562,1769545610891,-500.0,0.00043367,120]
[403801563,1769545610957,-500.0,0.00043367,120]
[403801564,1769545611022,-500.0,0.00043367,120]
[403801565,1769545611089,-500.0,0.00043367,120]
[403801566,1769545611156,-160.66294715,0.00043367,120]
[403801567,1769545611221,-500.0,0.00043367,120]
[403801568,1769545611290,-500.0,0.00043367,120]
[403801569,1769545611354,-513.31159352,0.00043367,120]
[403801570,1769545611419,-500.0,0.00043367,120]
[403801571,1769545611483,-500.0,0.00043367,120]
[403801572,1769545611548,-539.75083299,0.00043367,120]
[403801573,1769545611614,-500.0,0.00043367,120]
[403801574,1769545611684,-247.02599257,0.00043367,120]
[403801575,1769545611752,-500.0,0.00043367,120]
[403801576,1769545611818,-198.02964677,0.00043367,120]
[403801577,1769545611883,-555.02600162,0.00043367,120]
[403801578,1769545611948,-500.0,0.00043367,120]
[403801579,1769545612014,-500.0,0.00043367,120]
[403801580,1769545612080,-327.65575171,0.00043367,120]
[403801581,1769545612147,-369.65968036,0.00043367,120]
[403801582,1769545612210,-500.0,0.00043367,120]
[403801583,1769545612274,-500.0,0.00043367,120]
[403801584,1769545612337,-510.02749127,0.00043367,120]
[403801585,1769545612400,-501.17474193,0.00043367,120]
[403801586,1769545612464,-500.0,0.00043367,120]
[403801587,1769545612527,-171.18500836,0.00043367,120]
[403801588,1769545612592,-537.35775194,0.00043367,120]
[403801589,1769545612659,-500.0,0.00043367,120]
[403801590,1769545612726,-500.0,0.00043367,120]
[403801591,1769545612790,-500.0,0.00043367,120]
[403801592,1769545612855,-500.0,0.00043367,120]
[403801593,1769545612923,-500.0,0.00043367,120]
[403801594,1769545612986,-500.0,0.00043367,120]
[403801595,1769545613050,-366.55089578,0.00043367,120]
[403801596,1769545613116,-505.5634986,0.00043367,120]
[403801597,1769545613182,-500.0,0.00043367,120]
[403801598,1769545613248,-190.51942098,0.00043367,120]
[403801599,1769545613314,-505.39379834,0.00043367,120]
[403801600,1769545613378,-500.0,0.00043367,120]
[403801601,1769545613858,-500.0,0.00043367,120]
[403801602,1769545613925,-230.64309932,0.00043367,120]
[403801603,1769545613990,-512.98617841,0.00043367,120]
[403801604,1769545614056,-517.91722596,0.00043367,120]
[403801605,1769545614123,-500.0,0.00043367,120]
[403801606,1769545614189,-500.0,0.00043367,120]
[403801607,1769545614253,-500.0,0.00043367,120]
[403801608,1769545614316,-503.6675721,0.00043367,120]
[403801609,1769545614379,-329.64685988,0.00043367,120]
[403801610,1769545614445,-429.05379643,0.00043367,120]
[403801611,1769545614507,-500.0,0.00043367,120]
[403801612,1769545614571,-516.72863816,0.00043367,120]
[403801613,1769545614635,-500.0,0.00043367,120]
[403801614,1769545614700,-500.0,0.00043367,120]
[403801615,1769545614767,-500.0,0.00043367,120]
[403801616,1769545614840,-500.0,0.00043367,120]
[403801617,1769545614906,-515.53916045,0.00043367,120]
[403801618,1769545614971,-543.84351114,0.00043367,120]
[403801619,1769545615038,-500.0,0.00043367,120]
[403801620,1769545615103,-544.92100577,0.00043367,120]
[403801621,1769545615171,-500.0,0.00043367,120]
[403801622,1769545615238,-504.85893534,0.00043367,120]
[403801623,1769545615305,-500.0,0.00043367,120]
[403801624,1769545615370,-500.0,0.00043367,120]
[403801625,1769545615438,-500.0,0.00043367,120]
[403801626,1769545615503,-500.0,0.00043367,120]
[403801627,1769545615571,-163.60962925,0.00043367,120]
[403801628,1769545615637,-500.0,0.00043367,120]
[403801629,1769545615702,-500.0,0.00043367,120]
[403801630,1769545615769,-523.66055479,0.00043367,120]
[403801631,1769545615835,-500.0,0.00043367,120]
[403801632,1769545615900,-517.13050088,0.00043367,120]
[403801633,1769545615973,-500.0,0.00043367,120]
[403801634,1769545616038,-500.0,0.00043367,120]
[403801635,1769545616104,-553.06956327,0.00043367,120]
[403801636,1769545616169,-500.0,0.00043367,120]
[403801637,1769545616240,-206.99352285,0.00043367,120]
[403801638,1769545616307,-513.13682842,0.00043367,120]
[403801639,1769545616373,-245.01764983,0.00043367,120]
[403801640,1769545616436,-487.63398477,0.00043367,120]
[403801641,1769545616500,-343.57567435,0.00043367,120]
[403801642,1769545616566,-500.0,0.00043367,120]
[403801643,1769545616632,-539.02762594,0.00043367,120]
[403801644,1769545616697,-500.0,0.00043367,120]
[403801645,1769545616762,-500.0,0.00043367,120]
[403801646,1769545616829,-500.0,0.00043367,120]
[403801647,1769545616896,-500.0,0.00043367,120]
[403801648,1769545616963,-517.37949958,0.00043367,120]
[403801649,1769545617029,-506.71623336,0.00043367,120]
[403801650,1769545617094,-500.0,0.00043367,120]
[403801651,1769545617158,-500.0,0.00043367,120]
[403801652,1769545617223,-500.0,0.00043367,120]
[403801653,1769545617292,-500.0,0.00043367,120]
[403801654,1769545617358,-565.3801343,0.00043367,120]
[403801655,1769545617426,-501.62195266,0.00043367,120]
[403801656,1769545617492,-500.0,0.00043367,120]
[403801657,1769545617558,-500.0,0.00043367,120]
[403801658,1769545617624,-500.0,0.00043367,120]
[403801659,1769545617691,-500.0,0.00043367,120]
[403801660,1769545617756,-500.0,0.00043367,120]
[403801661,1769545617823,-381.94112501,0.00043367,120]
[403801662,1769545617887,-500.0,0.00043367,120]
[403801663,1769545617952,-506.66191838,0.00043367,120]
[403801664,1769545618018,-516.7613112,0.00043367,120]
[403801665,1769545618096,-500.0,0.00043367,120]
[403801666,1769545618159,-513.73376064,0.00043367,120]
[403801667,1769545618223,-534.09641816,0.00043367,120]
[403801668,1769545618291,-500.0,0.00043367,120]
[403801669,1769545618356,-536.34068741,0.00043367,120]
[403801670,1769545618422,-500.0,0.00043367,120]
[403801671,1769545618486,-500.0,0.00043367,120]
[403801672,1769545618552,-500.0,0.00043367,120]
[403801673,1769545618619,-511.21735949,0.00043367,120]
[403801674,1769545618687,-500.0,0.00043367,120]
[403801675,1769545618751,-501.72294745,0.00043367,120]
[403801676,1769545618824,-508.40166009,0.00043367,120]
[403801677,1769545618888,-511.45183803,0.00043367,120]
[403801678,1769545618953,-500.0,0.00043367,120]
[403801679,1769545619017,-500.0,0.00043367,120]
[403801680,1769545619082,-515.43369904,0.00043367,120]
[403801681,1769545619151,-500.0,0.00043367,120]
[403801682,1769545619217,-500.0,0.00043367,120]
[403801683,1769545619287,-500.0,0.00043367,120]
[403801684,1769545619353,-500.0,0.00043367,120]
[403801685,1769545619414,-517.01919227,0.00043367,120]
[403801686,1769545619477,-500.0,0.00043367,120]
[403801687,1769545619541,-205.95,0.00043367,120]
[403801688,1769545619605,-500.0,0.00043367,120]
[403801689,1769545619671,-500.0,0.00043367,120]
[403801690,1769545619737,-500.0,0.00043367,120]
[403801691,1769545619801,-553.2618984,0.00043367,120]
[403801692,1769545619869,-533.80889527,0.00043367,120]
[403801693,1769545619936,-500.0,0.00043367,120]
[403801694,1769545620000,-500.0,0.00043367,120]
[403801695,1769545620066,-528.97160678,0.00043367,120]
[403801696,1769545620497,-500.0,0.00043367,120]
[403801697,1769545620564,-500.0,0.00043367,120]
[403801698,1769545620630,-500.0,0.00043367,120]
[403801699,1769545620694,-500.0,0.00043367,120]
[403801700,1769545620757,-509.73910116,0.00043367,120]
[403801701,1769545620819,-238.75236803,0.00043367,120]
[403801702,1769545620881,-348.75985396,0.00043367,120]
[403801703,1769545620945,-500.0,0.00043367,120]
[403801704,1769545621008,-500.0,0.00043367,120]
[403801705,1769545621071,-500.0,0.00043367,120]
[403801706,1769545621135,-525.85116438,0.00043367,120]
[403801707,1769545621198,-500.0,0.00043367,120]
[403801708,1769545621265,-500.0,0.00043367,120]
[403801709,1769545621328,-500.0,0.00043367,120]
[403801710,1769545621394,-549.86506737,0.00043367,120]
[403801711,1769545621458,-500.0,0.00043367,120]
[403801712,1769545621536,-500.0,0.00043367,120]
[403801713,1769545621615,-508.44654335,0.00043367,120]
[403801714,1769545621680,-508.63999779,0.00043367,120]
[403801715,1769545621744,-514.85219848,0.00043367,120]
[403801716,1769545621816,-500.0,0.00043367,120]
[403801717,1769545621884,-500.0,0.00043367,120]
[403801718,1769545621949,-500.0,0.00043367,120]
[403801719,1769545622014,-500.0,0.00043367,120]
[403801720,1769545622079,-504.48017638,0.00043367,120]
[403801721,1769545622143,-560.66151203,0.00043367,120]
[403801722,1769545622207,-500.0,0.00043367,60]
[403801723,1769545622272,-353.36670621,0.00043367,120]
[403801724,1769545622339,-500.0,0.00043367,60]
[403801725,1769545622402,-500.0,0.00043367,60]
[403801726,1769545622465,-569.78930603,0.00043367,60]
[403801727,1769545622527,-500.0,0.00043367,120]
[403801728,1769545622591,-500.0,0.00043367,120]
[403801729,1769545622655,-500.0,0.00043367,120]
[403801730,1769545622718,-500.0,0.00043367,120]
[403801731,1769545622783,-355.80411145,0.00043367,120]
[403801732,1769545622849,-500.0,0.00043367,120]
[403801733,1769545622929,-500.0,0.00043367,120]
[403801734,1769545623005,-500.0,0.00043367,120]
[403801735,1769545623071,-500.0,0.00043367,120]
[403801736,1769545623135,-500.0,0.00043367,120]
[403801737,1769545623199,-500.0,0.00043367,120]